fUST/lending_fUST_20250513
["ID","MTS","AMOUNT","RATE_DAILY","PERIOD"]
[360903635,1747133446891,-400.67799018,0.00014766,2]
[360903637,1747133446901,-400.0,0.00014766,2]
[360903639,1747133446910,-400.0,0.00014766,2]
[360903641,1747133446920,-494.78892151,0.00014766,2]
[360903643,1747133446930,-400.0,0.00014766,2]
[360903645,1747133446940,-791.97,0.00014766,2]
[360903647,1747133446949,-430.21,0.00014766,2]
[360903649,1747133446959,-1603.83,0.00014766,2]
[360903651,1747133446968,-797.74,0.00014766,2]
[360903653,1747133446978,-1696.97,0.00014766,2]
[360903655,1747133446987,-4201.39,0.00014766,2]
[360903657,1747133446997,-1047.22,0.00014766,2]
[360903659,1747133447007,-151.0,0.00014766,2]
[360903661,1747133447017,-151.0,0.00014766,2]
[360903663,1747133447026,-2543.05,0.00014766,2]
[360903665,1747133447036,-151.0,0.00014766,2]
[360903667,1747133447045,-151.0,0.00014766,2]
[360903668,1747133447054,-151.0,0.00014766,2]
[360903669,1747133447064,-151.0,0.00014766,2]
[360903670,1747133447074,-638.51,0.00014766,2]
[360903671,1747133447083,-151.0,0.00014766,2]
[360903672,1747133447094,-1139.76,0.00014766,2]
[360903673,1747133447103,-256.41945045,0.00014766,2]
[360903674,1747133447113,-231.23169168,0.00014766,2]
[360903675,1747133447122,-1623.41,0.00014766,2]
[360903676,1747133447132,-9554.37,0.00014766,2]
[360903677,1747133447141,-205.33675662,0.00014766,2]
[360903678,1747133447151,-400.0,0.00014766,2]
[360903679,1747133447161,-160.450959,0.00014766,2]
[360903680,1747133447170,-160.450959,0.00014766,2]
[360903681,1747133447180,-151.0,0.00014766,2]
[360903682,1747133447190,-151.0,0.00014766,2]
[360903683,1747133447200,-151.0,0.00014766,2]
[360903684,1747133447209,-400.0,0.00014766,2]
[360903685,1747133447218,-11609.71,0.00014766,2]
[360903686,1747133447228,-204.723071,0.00014766,2]
[360903687,1747133447237,-7324.24,0.00014766,2]
[360903688,1747133447249,-204.723071,0.00014766,2]
[360903689,1747133447262,-2267.36,0.00014766,2]
[360903690,1747133447272,-620.3,0.00014766,2]
[360903691,1747133447285,-372.899454,0.00014766,2]
[360903692,1747133447297,-372.899454,0.00014766,2]
[360903693,1747133447307,-939.928161,0.00014766,2]
[360903694,1747133447316,-939.928161,0.00014766,2]
[360903695,1747133447326,-1397.28,0.00014766,2]
[360903696,1747133447336,-8452.90778756,0.00014766,2]
[360903697,1747133447349,-2637.17784334,0.00014766,2]
[360903698,1747133447366,-700.59853048,0.00014766,2]
[360903699,1747133447422,-1023.1,0.00014597,2]
[360903700,1747133447432,-2846.31607687,0.00014766,2]
[360903702,1747133470864,-393.81501754,0.00014451,2]
[360903705,1747133586222,6000.0,0.00014,30]
[360904922,1747134028327,-152.459,0.00013138,2]
[360904938,1747134031050,4307.209,0.0002,120]
[360905595,1747134232952,-3869.0,0.00013007,2]
[360905596,1747134234896,-194.256175,0.00013007,2]
[360905665,1747134250079,-196.47763723,0.00013007,2]
[360905697,1747134265111,-288.16200006,0.00013007,2]
[360905703,1747134428558,-5000.0,0.00012787,2]
[360905704,1747134428579,-7.49776995,0.00012792,2]
[360905705,1747134432115,-173.12641463,0.00012792,2]
[360905706,1747134432138,-349.2695165,0.00012916,2]
[360905707,1747134432160,-404.25634751,0.00013171,2]
[360905708,1747134432183,-126.93187862,0.00013272,2]
[360905709,1747134435093,-402.43021619,0.00012664,2]
[360905710,1747134449110,-4597.56978381,0.00012664,2]
[360905711,1747134449131,-373.06812138,0.00013272,2]
[360905712,1747134449153,-500.0,0.00013272,2]
[360905713,1747134449175,-695.49600743,0.00013398,2]
[360905848,1747134632397,-250.0,0.00013002,2]
[360905850,1747134632408,-5000.0,0.00013264,2]
[360905852,1747134632417,-1314.48801457,0.00013398,2]
[360905854,1747134632427,-250.0,0.00013406,2]
[360905856,1747134632436,-170.5055661,0.00013688,2]
[360905858,1747134632445,-300.0,0.00013694,2]
[360905860,1747134632455,-839.0,0.00013694,2]
[360905862,1747134632464,-300.0,0.00013694,2]
[360905864,1747134632474,-500.0,0.00013695,2]
[360905873,1747134632548,-500.0,0.00013695,2]
[360905875,1747134632558,-500.0,0.00013695,2]
[360905877,1747134632567,-500.0,0.00013695,2]
[360905879,1747134632576,-500.0,0.00013695,2]
[360905880,1747134632585,-500.0,0.00013695,2]
[360905882,1747134632595,-247.13241149,0.00013695,2]
[360905884,1747134632605,-500.0,0.00013695,2]
[360905886,1747134632614,-500.0,0.00013695,2]
[360905888,1747134632623,-500.0,0.00013695,2]
[360905890,1747134632633,-500.0,0.00013695,2]
[360905891,1747134632643,-500.0,0.00013695,2]
[360905893,1747134632653,-500.0,0.00013695,2]
[360905895,1747134632663,-500.0,0.00013695,2]
[360905897,1747134632672,-500.0,0.00013695,2]
[360905899,1747134632682,-500.0,0.00013695,2]
[360905901,1747134632692,-176.05724042,0.00013695,2]
[360905903,1747134632701,-360.00699873,0.00013695,2]
[360905905,1747134632711,-500.0,0.00013695,2]
[360905907,1747134632720,-500.0,0.00013695,2]
[360905909,1747134632730,-500.0,0.00013695,2]
[360905911,1747134632739,-500.0,0.00013695,2]
[360905913,1747134632747,-400.0,0.00013698,2]
[360905915,1747134632757,-400.0,0.00013698,2]
[360905917,1747134632767,-400.0,0.00013698,2]
[360905919,1747134632776,-400.0,0.00013698,2]
[360905920,1747134632785,-330.00234385,0.00013698,2]
[360905922,1747134632795,-400.0,0.00013698,2]
[360905924,1747134632804,-400.0,0.00013698,2]
[360905925,1747134632813,-400.0,0.00013698,2]
[360905926,1747134632823,-400.0,0.00013698,2]
[360905927,1747134632832,-400.0,0.00013698,2]
[360905928,1747134632841,-400.0,0.00013698,2]
[360905929,1747134632850,-400.427057,0.00013698,2]
[360905930,1747134632860,-423.96255941,0.00013698,2]
[360905931,1747134632869,-301.170498,0.00013699,2]
[360905932,1747134632880,-400.0,0.00013972,2]
[360905933,1747134632890,-400.0,0.00013972,2]
[360905934,1747134632899,-400.0,0.00013972,2]
[360905935,1747134632909,-400.0,0.00013972,2]
[360905936,1747134632919,-400.0,0.00013972,2]
[360905937,1747134632928,-401.85658622,0.00013972,2]
[360905938,1747134632937,-400.0,0.00013972,2]
[360905939,1747134632947,-153.0,0.00014,2]
[360905940,1747134632956,-153.0,0.00014078,2]
[360905941,1747134632966,-153.0,0.00014078,2]
[360905942,1747134632975,-157.9294556,0.00014078,2]
[360905943,1747134632985,-153.0,0.00014078,2]
[360905944,1747134632994,-153.0,0.00014078,2]
[360905945,1747134633003,-153.0,0.00014078,2]
[360905946,1747134633013,-240.45742869,0.00014099,2]
[360905947,1747134633022,-521.48,0.00014099,2]
[360905948,1747134633032,-400.0,0.00014099,2]
[360905949,1747134633041,-1935.18,0.00014099,2]
[360905950,1747134633051,-2572.05,0.00014099,2]
[360905951,1747134633062,-6095.22,0.00014099,2]
[360905952,1747134633076,-400.0,0.00014099,2]
[360905953,1747134633085,-400.0,0.00014099,2]
[360905954,1747134633095,-400.0,0.00014099,2]
[360905955,1747134633104,-574.97,0.00014099,2]
[360905956,1747134633115,-578.73,0.00014099,2]
[360905957,1747134633124,-400.0,0.00014099,2]
[360905958,1747134633133,-2176.92,0.00014099,2]
[360905959,1747134633145,-159.9586398,0.000141,2]
[360905960,1747134633155,-1146.4340626,0.000141,2]
[360905961,1747134633164,-153.0,0.000141,2]
[360905962,1747134633174,-315.6794724,0.000141,2]
[360905963,1747134633184,-175.678528,0.000141,2]
[360905964,1747134633194,-153.0,0.00014178,2]
[360905965,1747134633204,-153.0,0.000142,2]
[360905966,1747134633213,-518.09044017,0.00014246,2]
[360905967,1747134633223,-400.0,0.00014246,2]
[360905968,1747134633232,-331.84986204,0.00014246,2]
[360905969,1747134633242,-400.0,0.00014246,2]
[360905970,1747134633252,-400.0,0.00014246,2]
[360905971,1747134633262,-228.595197,0.00014246,2]
[360905972,1747134633272,-400.0,0.00014297,2]
[360905973,1747134633283,-400.0,0.00014297,2]
[360905974,1747134633293,-12872.9,0.00014297,2]
[360905975,1747134633303,-400.0,0.00014297,2]
[360905976,1747134633313,-400.6170482,0.00014297,2]
[360905977,1747134633323,-381.91,0.00014297,2]
[360905978,1747134633333,-289.63593826,0.00014297,2]
[360905979,1747134633343,-3123.39,0.00014297,2]
[360905980,1747134633353,-3377.04,0.00014297,2]
[360905981,1747134633362,-488.49,0.00014297,2]
[360905982,1747134633371,-17717.97,0.00014297,2]
[360905983,1747134633380,-7310.99,0.00014297,2]
[360905984,1747134633389,-13214.72,0.00014297,2]
[360905985,1747134633398,-400.0,0.00014297,2]
[360905986,1747134633408,-676.74,0.00014297,2]
[360905987,1747134633417,-2621.03,0.00014297,2]
[360905988,1747134633427,-606.19,0.00014297,2]
[360905989,1747134633436,-2403.73,0.00014297,2]
[360905990,1747134633445,-6038.54,0.00014297,2]
[360905991,1747134633455,-400.0,0.00014297,2]
[360905992,1747134633464,-424.21,0.00014297,2]
[360905993,1747134633473,-1033.17,0.00014297,2]
[360905994,1747134633483,-504.41227335,0.00014297,2]
[360905995,1747134633492,-453.15,0.00014297,2]
[360905996,1747134633502,-3130.75,0.00014297,2]
[360905997,1747134633512,-1167.82,0.00014297,2]
[360905998,1747134633521,-4892.62,0.00014297,2]
[360905999,1747134633532,-618.39,0.00014297,2]
[360906000,1747134633542,-2077.22888597,0.00014297,2]
[360906001,1747134633556,-1083.72111403,0.00014297,2]
[360906002,1747134633565,-400.0,0.00014297,2]
[360906003,1747134633575,-400.0,0.00014297,2]
[360906004,1747134633585,-1452.02,0.00014297,2]
[360906005,1747134633600,-1671.55,0.00014297,2]
[360906006,1747134633609,-836.14,0.00014297,2]
[360906007,1747134633619,-400.0,0.00014297,2]
[360906008,1747134633628,-710.81,0.00014297,2]
[360906009,1747134633638,-291.6591913,0.00014298,2]
[360906010,1747134633647,-400.0,0.00014298,2]
[360906011,1747134633657,-673.03,0.00014298,2]
[360906012,1747134633667,-400.0,0.00014298,2]
[360906013,1747134633677,-629.74,0.00014298,2]
[360906014,1747134633686,-1244.48,0.00014298,2]
[360906015,1747134633695,-400.0,0.00014298,2]
[360906016,1747134633705,-983.19,0.00014298,2]
[360906017,1747134633715,-1181.1,0.00014298,2]
[360906018,1747134633724,-530.45,0.00014298,2]
[360906019,1747134633734,-2845.03,0.00014298,2]
[360906020,1747134633743,-1877.74,0.00014298,2]
[360906021,1747134633752,-993.71,0.00014298,2]
[360906022,1747134633762,-2041.57,0.00014298,2]
[360906023,1747134633772,-2333.79,0.00014298,2]
[360906024,1747134633782,-818.49,0.00014298,2]
[360906025,1747134633792,-401.09,0.00014298,2]
[360906026,1747134633802,-710.94,0.00014298,2]
[360906027,1747134633811,-519.36998825,0.00014298,2]
[360906028,1747134633821,-486.14,0.00014298,2]
[360906029,1747134633830,-400.0,0.00014298,2]
[360906030,1747134633840,-681.57,0.00014298,2]
[360906031,1747134633849,-1699.18,0.00014298,2]
[360906032,1747134633859,-400.0,0.00014298,2]
[360906033,1747134633869,-400.0,0.00014298,2]
[360906034,1747134633878,-400.0,0.00014298,2]
[360906035,1747134633888,-400.0,0.00014298,2]
[360906036,1747134633898,-400.0,0.00014298,2]
[360906037,1747134633907,-444.84,0.00014298,2]
[360906038,1747134633917,-427.50915335,0.00014298,2]
[360906039,1747134633926,-400.0,0.00014298,2]
[360906040,1747134633935,-5000.0,0.00014299,2]
[360906041,1747134633946,-151.0,0.00014299,2]
[360906042,1747134633955,-207.4,0.00014299,2]
[360906043,1747134633965,-5000.0,0.00014299,2]
[360906044,1747134633976,-154.42082803,0.00014299,2]
[360906045,1747134633986,-2780.34067116,0.00014299,2]
[360906049,1747134638141,-5000.0,0.00013957,2]
[360906050,1747134638152,-500.0,0.00014098,2]
[360906051,1747134638163,-329.2925564,0.00014098,2]
[360906052,1747134638172,-219.94531624,0.00014098,2]
[360906321,1747134646612,-895.22,0.00013698,2]
[360906323,1747134646622,-400.0,0.00013698,2]
[360906325,1747134646632,-895.22,0.00013972,2]
[360906327,1747134646642,-280.05468376,0.00014098,2]
[360906329,1747134646651,-428.27186357,0.00014098,2]
[360906330,1747134646661,-12336.53,0.00014099,2]
[360906332,1747134646670,-16088.70345266,0.00014099,2]
[360906507,1747135586906,-274.6360475,0.00011861,2]
[360906509,1747135600149,-293.18829893,0.00011743,2]
[360906510,1747135615766,-233.35483806,0.00011743,2]
[360906512,1747135629110,-4473.45686301,0.00011743,2]
[360906513,1747135629132,-359.0199402,0.00011861,2]
[360906514,1747135629153,-16.30819441,0.00012033,2]
[360906516,1747135642087,-2231.67404226,0.00011912,2]
[360906517,1747135643092,-1254.2782373,0.00011912,2]
[360906518,1747135645083,-1514.04772044,0.00011912,2]
[360906519,1747135645104,-164.31599018,0.00012033,2]
[360906520,1747135645126,-300.0,0.00012676,2]
[360906521,1747135645148,-1200.0,0.00012677,2]
[360906522,1747135645169,-300.0,0.00012677,2]
[360906523,1747135645192,-317.77855541,0.00012677,2]
[360906524,1747135645214,-500.0,0.00012677,2]
[360906525,1747135645236,-500.0,0.00012677,2]
[360906526,1747135645258,-436.71765854,0.00012677,2]
[360906527,1747135645280,-1417.94632771,0.00012678,2]
[360906528,1747135645302,-649.7903045,0.00012678,2]
[360906529,1747135645323,-500.0,0.00012678,2]
[360906530,1747135645345,-547.65553855,0.00012678,2]
[360906531,1747135645369,-389.02330811,0.00012678,2]
[360906532,1747135651087,-195.62013596,0.00012678,2]
[360906533,1747135651109,-58.74790795,0.00012679,2]
[360906538,1747135714898,-246.82081551,0.0001,2]
[360906539,1747135718787,-33.05729973,0.0001,2]
[360906546,1747135774110,-5000.0,0.00012551,2]
[360906547,1747135774131,-250.0,0.00012616,2]
[360906548,1747135774153,-192.7349486,0.00012677,2]
[360906549,1747135774176,-300.0,0.00012678,2]
[360906550,1747135774198,-18844.7151225,0.00012679,2]
[360906588,1747135832407,-5000.0,0.00012552,2]
[360906590,1747135832416,-300.0,0.00012678,2]
[360906592,1747135832425,-300.0,0.00012678,2]
[360906594,1747135832435,-5093.26421775,0.00012679,2]
[360906596,1747135832443,-295.51498922,0.00013,2]
[360906598,1747135832452,-5080.476,0.000133,2]
[360906600,1747135832462,-1000.0,0.00013421,2]
[360906602,1747135832471,-893.91325447,0.000135,2]
[360906604,1747135832480,-151.92056124,0.00013598,2]
[360906606,1747135832490,-313.76143235,0.00013598,2]
[360906608,1747135832499,-151.92056121,0.00013667,2]
[360906610,1747135832508,-500.0,0.00013673,2]
[360906612,1747135832517,-500.0,0.00013673,2]
[360906615,1747135832531,-500.0,0.00013673,2]
[360906618,1747135832540,-332.9237507,0.00013673,2]
[360906891,1747135838286,-167.0762493,0.00013673,2]
[360906892,1747135838296,-500.0,0.00013673,2]
[360906893,1747135838306,-500.0,0.00013673,2]
[360906894,1747135838316,-155.01851233,0.0001369,2]
[360906895,1747135838326,-373.9210676,0.00013696,2]
[360906896,1747135838350,-626.0789324,0.00013696,2]
[360906897,1747135838360,-1029.62326347,0.00013697,2]
[360906898,1747135838370,-500.0,0.00013697,2]
[360906899,1747135838380,-364.103624,0.00013697,2]
[360906900,1747135838389,-500.0,0.00013697,2]
[360906901,1747135838399,-893.22,0.00013698,2]
[360906902,1747135838409,-400.0,0.00013698,2]
[360906903,1747135838418,-400.0,0.00013698,2]
[360906904,1747135838428,-400.0,0.00013698,2]
[360906905,1747135838437,-400.0,0.00013698,2]
[360906906,1747135838446,-400.0,0.00013698,2]
[360906907,1747135838456,-533.59,0.00013698,2]
[360906908,1747135838465,-400.0,0.00013698,2]
[360906909,1747135838475,-400.0,0.00013698,2]
[360906910,1747135838485,-400.0,0.00013698,2]
[360906911,1747135838494,-468.57,0.00013698,2]
[360906912,1747135838503,-400.0,0.00013698,2]
[360906913,1747135838514,-1438.39,0.00013698,2]
[360906914,1747135838527,-400.0,0.00013698,2]
[360906915,1747135838536,-400.0,0.00013698,2]
[360906916,1747135838546,-400.0,0.00013698,2]
[360906917,1747135838555,-637.89,0.00013698,2]
[360906918,1747135838566,-400.0,0.00013698,2]
[360906919,1747135838575,-472.52235293,0.00013698,2]
[360906920,1747135838585,-400.0,0.00013698,2]
[360906921,1747135838595,-400.0,0.00013698,2]
[360906922,1747135838606,-449.0,0.00013698,2]
[360906923,1747135838615,-400.0,0.00013698,2]
[360906924,1747135838624,-400.0,0.00013698,2]
[360906925,1747135838633,-400.0,0.00013698,2]
[360906926,1747135838643,-400.0,0.00013698,2]
[360906927,1747135838652,-404.27285031,0.00013698,2]
[360906928,1747135838661,-640.72,0.00013698,2]
[360906929,1747135838671,-193.65545589,0.00013698,2]
[360906930,1747135838686,-270.17454411,0.00013698,2]
[360906931,1747135838696,-61.76111297,0.00013698,2]
[360906970,1747135840790,-533.35887698,0.00013697,2]
[360906972,1747135840800,-145.31505704,0.00013698,2]
[360907001,1747135843500,-833.71355375,0.00013561,2]
[360907054,1747135846635,-4166.28644625,0.00013561,2]
[360907056,1747135846644,-192.92382999,0.00013698,2]
[360907058,1747135846654,-400.0,0.00013698,2]
[360907060,1747135846663,-400.0,0.00013698,2]
[360907062,1747135846672,-400.0,0.00013698,2]
[360907064,1747135846682,-777.4,0.00013698,2]
[360907066,1747135846691,-400.0,0.00013698,2]
[360907068,1747135846701,-400.0,0.00013698,2]
[360907098,1747135846970,-400.0,0.00013698,2]
[360907100,1747135846980,-762.31,0.00013698,2]
[360907102,1747135846990,-400.0,0.00013698,2]
[360907104,1747135846999,-537.19,0.00013698,2]
[360907106,1747135847009,-396.03268528,0.00013698,2]
[360907108,1747135847019,-447.84,0.00013698,2]
[360907110,1747135847029,-400.0,0.00013698,2]
[360907112,1747135847038,-400.0,0.00013698,2]
[360907114,1747135847048,-416.68545219,0.00013698,2]
[360907116,1747135847058,-619.02,0.00013698,2]
[360907118,1747135847067,-400.0,0.00013698,2]
[360907120,1747135847077,-400.0,0.00013698,2]
[360907122,1747135847091,-400.0,0.00013698,2]
[360907124,1747135847100,-400.0,0.00013698,2]
[360907126,1747135847109,-400.0,0.00013698,2]
[360907128,1747135847118,-819.58,0.00013698,2]
[360907130,1747135847127,-400.0,0.00013698,2]
[360907132,1747135847136,-942.32,0.00013698,2]
[360907134,1747135847146,-400.0,0.00013698,2]
[360907136,1747135847155,-400.0,0.00013698,2]
[360907138,1747135847164,-531.32,0.00013698,2]
[360907140,1747135847173,-400.0,0.00013698,2]
[360907142,1747135847183,-413.66794737,0.00013698,2]
[360907144,1747135847192,-400.0,0.00013698,2]
[360907146,1747135847201,-400.0,0.00013698,2]
[360907149,1747135847214,-400.0,0.00013698,2]
[360907151,1747135847223,-742.98,0.00013698,2]
[360907153,1747135847233,-400.0,0.00013698,2]
[360907155,1747135847242,-404.90038416,0.00013698,2]
[360907157,1747135847251,-954.62,0.00013698,2]
[360907159,1747135847260,-807.23,0.00013698,2]
[360907161,1747135847270,-347.194135,0.00013698,2]
[360907163,1747135847279,-400.0,0.00013698,2]
[360907164,1747135847288,-400.0,0.00013698,2]
[360907166,1747135847298,-839.72,0.00013698,2]
[360907168,1747135847308,-400.0,0.00013698,2]
[360907170,1747135847317,-400.0,0.00013698,2]
[360907172,1747135847327,-400.0,0.00013698,2]
[360907173,1747135847336,-400.0,0.00013698,2]
[360907174,1747135847346,-554.74,0.00013698,2]
[360907175,1747135847356,-400.0,0.00013698,2]
[360907177,1747135847365,-400.0,0.00013698,2]
[360907179,1747135847375,-400.0,0.00013698,2]
[360907181,1747135847384,-485.49,0.00013698,2]
[360907183,1747135847393,-400.0,0.00013698,2]
[360907185,1747135847402,-465.08,0.00013698,2]
[360907187,1747135847412,-400.0,0.00013698,2]
[360907189,1747135847421,-400.0,0.00013698,2]
[360907191,1747135847430,-2370.3,0.00013698,2]
[360907193,1747135847439,-1005.92,0.00013698,2]
[360907195,1747135847449,-151.0,0.00013698,2]
[360907197,1747135847458,-400.0,0.00013698,2]
[360907199,1747135847467,-400.0,0.00013698,2]
[360907201,1747135847475,-928.08,0.00013698,2]
[360907203,1747135847484,-337.284073,0.00013698,2]
[360907205,1747135847493,-400.0,0.00013698,2]
[360907206,1747135847502,-1575.12,0.00013698,2]
[360907207,1747135847511,-811.74,0.00013698,2]
[360907208,1747135847520,-185.817685,0.00013698,2]
[360907209,1747135847532,-425.5901948,0.00013698,2]
[360907210,1747135847542,-762.7,0.00013698,2]
[360907211,1747135847551,-400.0,0.00013698,2]
[360907212,1747135847560,-444.89,0.00013698,2]
[360907213,1747135847570,-400.0,0.00013698,2]
[360907214,1747135847580,-1002.03,0.00013698,2]
[360907215,1747135847589,-400.0,0.00013698,2]
[360907216,1747135847599,-400.0,0.00013698,2]
[360907217,1747135847613,-400.44372818,0.00013698,2]
[360907218,1747135847623,-400.0,0.00013698,2]
[360907219,1747135847632,-400.0,0.00013698,2]
[360907220,1747135847641,-727.7,0.00013698,2]
[360907221,1747135847651,-400.79620349,0.00013698,2]
[360907222,1747135847660,-151.0,0.00013698,2]
[360907223,1747135847670,-400.0,0.00013698,2]
[360907224,1747135847679,-1445.13,0.00013698,2]
[360907225,1747135847688,-400.0,0.00013698,2]
[360907226,1747135847698,-905.39,0.00013698,2]
[360907227,1747135847707,-501.24,0.00013698,2]
[360907228,1747135847717,-1308.74,0.00013698,2]
[360907229,1747135847727,-1935.49,0.00013698,2]
[360907230,1747135847736,-400.0,0.00013698,2]
[360907231,1747135847746,-402.21,0.00013698,2]
[360907232,1747135847755,-792.4,0.00013698,2]
[360907233,1747135847763,-1605.59,0.00013698,2]
[360907234,1747135847773,-400.0,0.00013698,2]
[360907235,1747135847782,-668.42,0.00013698,2]
[360907236,1747135847792,-400.0,0.00013698,2]
[360907237,1747135847802,-400.0,0.00013698,2]
[360907238,1747135847811,-400.0,0.00013698,2]
[360907239,1747135847820,-586.18,0.00013698,2]
[360907240,1747135847829,-400.0,0.00013698,2]
[360907241,1747135847839,-400.0,0.00013698,2]
[360907242,1747135847848,-400.0,0.00013698,2]
[360907243,1747135847859,-1156.21,0.00013698,2]
[360907244,1747135847868,-151.0,0.00013698,2]
[360907245,1747135847879,-432.29488289,0.00013698,2]
[360907246,1747135847888,-400.0,0.00013698,2]
[360907247,1747135847896,-644.99,0.00013698,2]
[360907248,1747135847906,-400.0,0.00013698,2]
[360907249,1747135847915,-400.0,0.00013698,2]
[360907250,1747135847924,-400.0,0.00013698,2]
[360907251,1747135847933,-217.536,0.00013698,2]
[360907252,1747135847942,-400.88722967,0.00013698,2]
[360907253,1747135847952,-401.04192572,0.00013698,2]
[360907254,1747135847961,-400.0,0.00013698,2]
[360907255,1747135847970,-400.0,0.00013698,2]
[360907256,1747135847979,-400.0,0.00013698,2]
[360907257,1747135847987,-579.82,0.00013698,2]
[360907258,1747135847997,-400.0,0.00013698,2]
[360907259,1747135848006,-400.0,0.00013698,2]
[360907260,1747135848016,-400.0,0.00013698,2]
[360907261,1747135848026,-312.57191598,0.00013698,2]
[360907262,1747135848035,-151.0,0.00013698,2]
[360907263,1747135848044,-151.0,0.00013698,2]
[360907264,1747135848054,-259.72150002,0.00013698,2]
[360907265,1747135848063,-1205.51,0.00013698,2]
[360907266,1747135848073,-400.0,0.00013698,2]
[360907267,1747135848082,-400.0,0.00013698,2]
[360907268,1747135848091,-400.0,0.00013698,2]
[360907269,1747135848100,-270.43727475,0.00013698,2]
[360907270,1747135848111,-400.0,0.00013698,2]
[360907271,1747135848120,-2386.95,0.00013698,2]
[360907272,1747135848130,-400.0,0.00013698,2]
[360907273,1747135848139,-151.0,0.00013698,2]
[360907274,1747135848149,-1010.29,0.00013698,2]
[360907275,1747135848159,-400.0,0.00013698,2]
[360907276,1747135848168,-401.09461568,0.00013698,2]
[360907277,1747135848177,-151.0,0.00013698,2]
[360907278,1747135848187,-755.85,0.00013698,2]
[360907279,1747135848196,-400.0,0.00013698,2]
[360907280,1747135848206,-794.37,0.00013698,2]
[360907281,1747135848215,-151.0,0.00013698,2]
[360907282,1747135848225,-159.64449,0.00013698,2]
[360907283,1747135848234,-400.0,0.00013698,2]
[360907284,1747135848244,-404.08986947,0.00013698,2]
[360907285,1747135848254,-151.0,0.00013698,2]
[360907286,1747135848264,-151.0,0.00013698,2]
[360907287,1747135848274,-502.0782794,0.00013698,2]
[360907288,1747135848283,-400.00752111,0.00013698,2]
[360907289,1747135848293,-400.0,0.00013698,2]
[360907290,1747135848302,-400.0,0.00013698,2]
[360907291,1747135848311,-400.0,0.00013698,2]
[360907292,1747135848321,-176.839339,0.00013698,2]
[360907293,1747135848331,-400.0,0.00013698,2]
[360907294,1747135848341,-400.0,0.00013698,2]
[360907295,1747135848351,-613.96,0.00013698,2]
[360907296,1747135848361,-300.0,0.00013698,2]
[360907297,1747135848372,-176.839339,0.00013698,2]
[360907298,1747135848381,-423.999151,0.00013698,2]
[360907299,1747135848390,-400.0,0.00013698,2]
[360907300,1747135848400,-423.999151,0.00013698,2]
[360907301,1747135848410,-400.0,0.00013698,2]
[360907302,1747135848419,-499.72,0.00013698,2]
[360907303,1747135848428,-536.96,0.00013698,2]
[360907304,1747135848437,-698.72,0.00013698,2]
[360907305,1747135848447,-953.4,0.00013698,2]
[360907306,1747135848456,-400.0,0.00013698,2]
[360907307,1747135848465,-151.0,0.00013698,2]
[360907308,1747135848475,-400.0,0.00013698,2]
[360907309,1747135848485,-400.0,0.00013698,2]
[360907310,1747135848495,-606.5,0.00013698,2]
[360907311,1747135848504,-151.0,0.00013698,2]
[360907312,1747135848513,-460.69,0.00013698,2]
[360907313,1747135848522,-520.34951819,0.00013698,2]